Cogmind - Beta 11.1 *** ADVENTURER MODE // 2022.04.30 @ 00:46:03 Player: Fgdfgfthgr Result: Destroyed by Mini Grenade Launcher Performance ------------- Evolutions (0) 0 Regions Visited (2) 400 Robots Destroyed (28) 140 Value Destroyed (608) 608 Prototype IDs (2) 40 Alien Tech Used (0) 0 Bonus (0) 0 TOTAL SCORE: 1188 Bonus ------- None Cogmind --------- Core Integrity 0/250 Matter 300/300 Energy 100/100 System Corruption 0% Temperature Cool (0) Movement Core (400) Ox7 Location -10/Mines Parts ------- > --- POWER (1) -------- (None) > --- PROPULSION (2) --- (None) > --- UTILITY (2) ------ Cooling System Large Storage Unit > --- WEAPON (2) ------- (None) > --- INVENTORY (15) --- Aluminum Leg Aluminum Leg Aluminum Leg Aluminum Leg Weight Redist. System Structural Scanner Targeting Computer Targeting Computer Phase Shifter Hardened Light Armor Plating Hardened Light Armor Plating Hardened Light Armor Plating Decoy Drone Bay Peak State ------------ > --- POWER ------------ Light Nuclear Core > --- PROPULSION ------- Aluminum Leg Flexi-carbon Leg > --- UTILITY ---------- Cooling System Large Storage Unit > --- WEAPON ----------- Particle Gun Light Assault Rifle > --- INVENTORY -------- Aluminum Leg Aluminum Leg Aluminum Leg Aluminum Leg Weight Redist. System Structural Scanner Targeting Computer Targeting Computer Phase Shifter Hardened Light Armor Plating Hardened Light Armor Plating Hardened Light Armor Plating Decoy Drone Bay Grenade Launcher [Rating: 18] Favorites ----------- Power Light Ion Engine Engine Light Ion Engine Power Core Light Nuclear Core Propulsion Aluminum Leg Leg Aluminum Leg Utility Cooling System Device Cooling System Storage Large Storage Unit Weapon Particle Gun Energy Gun Particle Gun Ballistic Gun Light Assault Rifle Launcher Grenade Launcher Build | -11 -10 -10 ------- Run | Scr Mat Min Slots Evolved . | . . . Power . | . . . Propulsion . | . . . Utility . | . . . Weapon . | . . . Parts Attached 18 | . 12 6 Power 2 | . 1 1 Engine 1 | . 1 . Core 1 | . . 1 Reactor . | . . . Propulsion 5 | . 3 2 Treads . | . . . Leg 5 | . 3 2 Wheel . | . . . Hover . | . . . Flight . | . . . Utility 5 | . 4 1 Device 3 | . 2 1 Storage 2 | . 2 . Processor . | . . . Hackware . | . . . Protection . | . . . Artifact . | . . . Weapon 6 | . 4 2 Energy Gun 3 | . 3 . Energy Cannon . | . . . Ballistic Gun 1 | . . 1 Ballistic Cannon . | . . . Launcher 2 | . 1 1 Special Weapon . | . . . Impact Weapon . | . . . Slashing Weapon . | . . . Piercing Weapon . | . . . Special Melee Weapon . | . . . Unidentified Prototypes . | . . . Parts Lost 8 | . . 8 Power 2 | . . 2 Propulsion 2 | . . 2 Utility . | . . . Weapon 4 | . . 4 Highest Loss Streak 6 | . . 6 To Critical Strikes . | . . . Average Slot Usage (%) 97 | . 97 98 Engine 10 | . 13 4 Core 3 | . . 8 Leg 27 | . 27 28 Device 12 | . 11 13 Storage 14 | . 14 14 Energy Gun 22 | . 27 15 Ballistic Gun 4 | . . 12 Naked Turns . | . . . Heaviest Build 31 | 13 31 31 Greatest Support 30 | 20 26 30 Greatest Overweight (x) 1 | . 1 1 Average Overweight (x) . | . . . Largest Inventory Capacity 15 | . 15 15 Average Capacity 11 | . 9 15 Most Carried 15 | . 10 15 Average Carried 10 | . 8 13 Final Capacity 15 | 8 15 15 Final Carried 14 | 6 10 14 Class Distribution -------------------- 100% | Mutant Dominant Class ---------------- Mutant | -10/Materials Mutant | -10/Mines Resources | -11 -10 -10 ----------- Run | Scr Mat Min Matter Collected 427 | 200 120 107 Remotely . | . . . Salvage Created 917 | . 656 261 Parts 58 | . 51 7 Haulers Intercepted 2 | . 2 . Recyclers Shooed 1 | . 1 . Parts Field Recycled . | . . . Retrieved Matter . | . . . Parts Self-Destructed . | . . . Prevented . | . . . Kills | -11 -10 -10 ------- Run | Scr Mat Min Combat Hostiles Destroyed 25 | . 13 12 Guns 25 | . 13 12 Classes Destroyed 7 | . 6 1 Worker 5 | . 5 . Builder 1 | . 1 . Hauler 2 | . 2 . Watcher 1 | . 1 . Swarmer 5 | . 3 2 Grunt 14 | . 10 4 Assembled 6 | . . 6 Best Kill Streak 6 | . 6 6 Combat Bots Only 6 | . 4 6 Max Kills in Single Turn 2 | . 2 1 Gunslinging . | . . . Exploded . | . . . Melee . | . . . Uniques/NPCs Destroyed . | . . . Combat | -11 -10 -10 -------- Run | Scr Mat Min Damage Taken 1136 | . 220 916 Core 256 | . 64 192 Absorbed by Shields . | . . . Regen/Repaired (Parts) 22 | . 22 . Core Remaining (%) 100 | 100 . . Volleys Fired 83 | . 39 44 Largest 2 | . 2 2 Hottest 130 | . 130 130 Shots Fired 157 | . 75 82 Gun 154 | . 74 80 Cannon . | . . . Launcher 3 | . 1 2 Special . | . . . Kinetic 26 | . . 26 Thermal 128 | . 74 54 Explosive 3 | . 1 2 Electromagnetic . | . . . Robot Hit Streak 18 | . 15 18 Robot Miss Streak 3 | . 3 2 Penetration Max . | . . . Secondary Targets 1 | . . 1 Max Gunslinging Chain 1 | . . 1 Shots Hit Robots 122 | . 51 71 Core Hits 58 | . 29 29 Critical Kills . | . . . Critical Parts Destroyed . | . . . Critical Strikes 2 | . 1 1 Burn 2 | . 1 1 Melee Attacks . | . . . Impact . | . . . Slashing . | . . . Piercing . | . . . Sneak Attacks . | . . . Combat Hostiles . | . . . Follow-up Attacks . | . . . Damage Inflicted 1764 | . 760 1004 Guns 1689 | . 760 929 Cannons . | . . . Explosions 75 | . . 75 Melee . | . . . Ramming . | . . . Kinetic 188 | . . 188 Thermal 1501 | . 760 741 Explosive 75 | . . 75 Electromagnetic . | . . . Impact . | . . . Slashing . | . . . Piercing . | . . . Highest Corruption . | . . . Average Corruption . | . . . Corruption Purged . | . . . Corruption Blocked . | . . . Overload Shots . | . . . Overflow Damage 9 | . . 9 Projectiles . | . . . Explosions 9 | . . 9 Melee . | . . . Knockbacks . | . . . Impact . | . . . Kinetic . | . . . Secondary . | . . . Self-Inflicted Damage 39 | . . 39 Shots 2 | . . 2 Rammed . | . . . Targets Rammed . | . . . Kicked . | . . . Crushed . | . . . Highest Temperature 348 | . 348 127 Average Temperature 71 | . 88 34 Received Heat Transfer 340 | . 120 220 Siege Activations . | . . . Robots Corrupted . | . . . Combat Hostiles . | . . . Parts Fried . | . . . Impact Corruptions . | . . . Robots Melted . | . . . Combat Hostiles . | . . . Parts Melted 2 | . . 2 Heat Transferred 3766 | . 1953 1813 Parts Sabotaged . | . . . Parts Stolen . | . . . Parts Stripped . | . . . Power Chain Reactions . | . . . Missiles Intercepted . | . . . Alert | -11 -10 -10 ------- Run | Scr Mat Min Peak Influence 269 | . 269 201 Initial 11 | . . 11 Average 85 | . 109 52 Maximum Alert Level 1 | . 1 1 Low Security (%) 84 | . 79 90 Level 1 15 | . 20 9 Level 2 . | . . . Level 3 . | . . . Level 4 . | . . . Level 5 . | . . . High Security . | . . . Max Security . | . . . Squads Dispatched 4 | . 4 . Investigation 4 | . 4 . Extermination . | . . . Reinforcement . | . . . Assault . | . . . Garrison . | . . . Intercept . | . . . Searches Triggered . | . . . Construction Impeded . | . . . Haulers Reinforced . | . . . Active Scanning Responses . | . . . Cargo Convoy Interrupts . | . . . Stealth | -11 -10 -10 --------- Run | Scr Mat Min Distress Signals 1 | . 1 . Communications Jammed . | . . . Distress Signals . | . . . Times Spotted 42 | . 19 23 Peak Tracking Total 7 | . 4 7 Tactical Retreats 2 | . . 2 Traps | -11 -10 -10 ------- Run | Scr Mat Min Traps Triggered 3 | . 3 . Indirectly . | . . . Trap Hack Attempts . | . . . Triggered . | . . . Disarmed . | . . . Reprogrammed . | . . . Reused . | . . . Traps Extracted . | . . . Installed . | . . . Triggered . | . . . Machines | -11 -10 -10 ---------- Run | Scr Mat Min Machines Disabled . | . . . Max in Single Turn . | . . . Machines Sabotaged . | . . . Garrisons Compromised . | . . . Overloaded Fab Kills . | . . . Hacking | -11 -10 -10 --------- Run | Scr Mat Min Machines Accessed 13 | . 11 2 Terminals 9 | . 8 1 Fabricators . | . . . Repair Stations 1 | . 1 . Recycling Units 2 | . 2 . Scanalyzers . | . . . Garrison Access . | . . . Total Hacks 29 | . 25 4 Successful 17 | . 15 2 Failed 11 | . 9 2 Catastrophic 1 | . 1 . Database Lockouts 1 | . 1 . Manual 14 | . 13 1 Terminals 24 | . 21 3 Fabricators . | . . . Repair Stations 2 | . 2 . Recycling Units 2 | . 2 . Scanalyzers . | . . . Garrison Access . | . . . Terminal Hacks 13 | . 11 2 Robot Analysis 5 | . 5 . Prototype ID Bank 1 | . 1 . Open Door 1 | . . 1 Emergency Access Points 1 | . 1 . Terminal Index 1 | . 1 . Recycling Unit Index 1 | . 1 . Locate Traps 2 | . 2 . Zone Layout 1 | . . 1 Fabricator Hacks . | . . . Repair Station Hacks 2 | . 2 . Scan Component 1 | . 1 . Repair 1 | . 1 . Recycling Unit Hacks . | . . . Scanalyzer . | . . . Garrison Access Hacks . | . . . Unauthorized Hacks 2 | . 2 . Terminals . | . . . Fabricators . | . . . Repair Stations . | . . . Recycling Units 2 | . 2 . Tunnel 2 | . 2 . Scanalyzers . | . . . Garrison Access . | . . . Data Cores Recovered . | . . . Used . | . . . Hacking Detections 8 | . 8 . Full Trace Events . | . . . Feedback Events . | . . . Feedback Blocked . | . . . Robot Schematics Acquired . | . . . Robots Built . | . . . Authchips . | . . . Time . | . . . Total Robot Build Rating . | . . . Part Schematics Acquired . | . . . Parts Built . | . . . Authchips . | . . . Time . | . . . Total Part Build Rating . | . . . Parts Repaired 1 | . 1 . Time 26 | . 26 . Parts Recycled . | . . . Recycled Matter . | . . . Retrieved Matter . | . . . Retrieved Components . | . . . Parts Scanalyzed . | . . . Part Schematics Acquired . | . . . Parts Damaged . | . . . Bothacking | -11 -10 -10 ------------ Run | Scr Mat Min Used RIF Installer . | . . . Robots Hacked . | . . . Non-combat . | . . . Combat . | . . . Robot Hacks Applied . | . . . Relay Couplers Released . | . . . Fabnet Peak Effective % . | . . . Robots Rewired . | . . . Allies Hacked . | . . . Hacks Repelled . | . . . Allies | -11 -10 -10 -------- Run | Scr Mat Min Total Allies . | . . . Largest Group . | . . . Highest-Rated Group . | . . . Highest-Rated Ally . | . . . Total Orders . | . . . Ally Attacks . | . . . Total Damage . | . . . Kills . | . . . Allies Corrupted . | . . . Allies Melted . | . . . Intel | -11 -10 -10 ------- Run | Scr Mat Min Robot Analysis Total 5 | . 5 . Derelict Logs Recovered 1 | . . 1 Drone Launches . | . . . Drone Recoveries . | . . . Exploration | -11 -10 -10 ------------- Run | Scr Mat Min Turns Passed 2194 | . 1291 903 Spaces Moved 1019 | 1 586 432 Core . | . . . Treads . | . . . Legs 1019 | 1 586 432 Wheels . | . . . Hover . | . . . Flight . | . . . Fastest Speed 120 | 120 120 120 Average Speed 158 | 120 151 169 Slowest Speed 190 | 120 190 190 Overloaded Moves . | . . . Propulsion Burnouts . | . . . Robots Hopped . | . . . Cave-ins Triggered . | . . . Exploration Rate (%) 55 | 2 97 68 Regions Visited 2 Branch Regions 1 Pre-discovered Areas 3 | . 2 1 Known Exits Taken . | . . . Unknown Exits Taken 2 | 1 1 . Scrap Searched 2 | . . 2 Spaces Dug 5 | . 5 . Terrain Destroyed 12 | . 5 7 Melee . | . . . Projectile . | . . . AOE 12 | . 5 7 Terrain Rammed . | . . . Walls Destroyed . | . . . Machines Disabled . | . . . Actions | -11 -10 -10 --------- Run | Scr Mat Min Total 1446 | . 920 526 Wait 299 | . 263 36 Move 1017 | . 585 432 Hop . | . . . Pick Up 14 | . 9 5 Fast Attach 5 | . 3 2 Attach 3 | . 1 2 Detach 1 | . 1 . Swap 10 | . 8 2 Drop 14 | . 11 3 Fire 83 | . 39 44 Melee . | . . . Ram . | . . . Kick . | . . . Crush . | . . . Escape Stasis . | . . . Rewire . | . . . Trap . | . . . Miscellaneous . | . . . Route ------- -11/Scrapyard -10/Materials (discovered 5 exits: [*Mat x3] / *Min x2) -10/Mines (discovered 2 exits: [*Mat x2]) History --------- Turn | Location | Event 1 | -11/Scrapyard | Discovered new exit (range 0) 1 | -11/Scrapyard | Entered Materials 211 | -10/Materials | Discovered new exit (range 11) 315 | -10/Materials | Build established: Mutant 376 | -10/Materials | Discovered new exit (range 16) 446 | -10/Materials | Repaired Aluminum Leg 791 | -10/Materials | Discovered new exit (range 12) 900 | -10/Materials | Discovered new exit (range 3) 1137 | -10/Materials | Central database locked down 1214 | -10/Materials | Discovered new exit (range 9) 1292 | -10/Materials | Entered Mines 1311 | -10/Mines | Assembled infested the area 1316 | -10/Mines | Assisted by a Guerilla fighting off Assembled 1653 | -10/Mines | Discovered new exit (range 8) 1680 | -10/Mines | Learned location of Zion (-6) 1705 | -10/Mines | Discovered new exit (range 11) 1720 | -10/Mines | Joined a pair of Derelicts in attacking an 0b10 outpost 1955 | -10/Mines | Found the Drone Emporium 1974 | -10/Mines | Found Prototype Device 2178 | -10/Mines | Core integrity fell below 50% 2183 | -10/Mines | Core integrity fell below 20% 2195 | -10/Mines | Destroyed by Mini Grenade Launcher Last Messages --------------- 02172_ Destroyed Com. Wheel. 02172_ U-05 Engineer lays Concrete. 02173_ R-06 Scavenger destroyed. 02173_ U-05 Engineer lays Concrete. 02175_ Acquired 20 matter. 02176_ The unstable cave ceiling collapses. 02176_ U-05 Engineer lays Concrete. 02178_ Acquired 10 matter. 02178_ U-05 Engineer builds a Wall. 02178_ Grenade Launcher destroyed. 02181_ The unstable cave ceiling collapses. 02182_ U-05 Engineer lays Concrete. 02184_ D-53 Grenadier destroyed. 02185_ U-05 Engineer lays Concrete. 02191_ U-05 Engineer builds a Wall. 02191_ Flexi-carbon Leg destroyed. 02191_ Aluminum Leg destroyed. 02192_ The unstable cave ceiling collapses. 02195_ U-05 Engineer builds a Wall. 02195_ D-53 Grenadier destroyed. Map ----- +----------------------------------------------------+ | ??????????# % #??????????????# #???????????# | | ??????????# #####??????????????#### #???????????# | | ??????????# #?????????????????????# #???????????# | | ??????????# #?????????????????????# #????###????# | | ??????????# #?????????????????????# #????# ##???# | | ??????????# #??????????????????#### #????# #???# | | ??????????# #?????????????????## # ##??## ##??# | | ??????????# #????????????????## # #### ##?# | | ??????????# #????????????????# # % ### | | ??????????# #???????????????# ## #### | | ??????????# #??????????????????# # # ??# | | ??????????# #???????????????#### ? ?## ### | | ??????????# #?????????????? ? # ?### " ##?? | | ??????????# #?????????????? ##### ## ## #??? | | #????????##%%##????????????# # ## # ### #??? | | #???????## ###??????#??# # ###% #??? | | #?????### ###???? ?? # ## ##?## #??? | | ?????## ##??? ## #####???#%#### | | ????## ##### #% ##??????#%%% | | ##### ## ## ##?????##% ## | | # ####% #####??## ## | | # ### ##??# # # ##??# ## | | # #?# ##???# u ??# ##?# ## | | # #?## #????## ##??# ### ## | | # #??### #?????# # # #?## ## | | #????## ##????## @ #???## ######### | | #?????## ####??# ##?#??######?????## | | ###??????# ##?## ##??####??????#T | | ?????????# #??## #### ##?????## | | ?????????## #???## ##?????# | | ??????????#### ##????#### ##????# | | ?????????????####????????? #????# | | ?????????????????????????? #???### | | ?????????????????????????? """ ### #??## | | ?????????????????????????? """ ##?## ##?## | | ?????????????????????????? ""? #???####### | | ?????????????????????????? ?? #??????## | | ???????????????????????????## ?? #??##### # | | ????????????????????????????? ? ##?## # | | ????????????????????????????? ???##??# # | | ?????????????????????????????????#???# ## # | | ######?####??????????????????????????# #### # | | ### ##?????????????????????????## ##?## ## | | #?????????????????????????????????????? | | #????????????????????????????????????? | | ## #????????????????????????????????????? | | ## ###### #????????????????????????????????????? | | ## #?????# #????????????????????????????????????? | | = #??????# #????????????????????????????????????? | | %= #???????##????????????????????????????????????? | +----------------------------------------------------+ Best States ------------- Heat Dissipation 47 Energy Generation 14 Energy Capacity 250 Matter Stores 300 Matter Capacity 300 Sight Range 16 Terrain Scan Density 10 Additional Mass Support 6 Resistance: KI 20 Resistance: TH 20 Resistance: EX 20 Resistance: EM 20 Resistance: I 20 Resistance: S 20 Resistance: P 20 Evasion (%) 55 Offensive Hacking 10 Item Schematics ----------------- None Robot Schematics ------------------ None Fabricated ------------ Nothing Alien Tech Used ----------------- None Achievements -------------- None Challenges ------------ None Game ------ Seed ProcessingActuatorMinigun Manual? 0 Play Time 00:12:06 Cumulative 126.2 hours Start 2022.04.30 @ 00:34:36 End 2022.04.30 @ 00:46:03 Sessions 1 Manual Loads 0 Difficulty Adventurer Special Mode None Game No. 57 Rogue 0 Adventurer 57 Explorer 0 Win Type - Total 10 Types 5/1/1/0/1/0/0/1/1 Lore% 84 Gallery% 75 Achievement% 69 Wizard Run 0 Options --------- ASCII 0 Keyboard 1 Movement Numpad Keybinds 0 Fullscreen 2 Font 18/SmallcapsGlow Map View 76x50 Tactical HUD 1 Map Filters NONE Filters NONE Steam 1 RUN: 25b59317-6656-46b6-bc01-a8c59800f5ab